Cogmind - Beta 9.6 @@@ ROGUE MODE // 2020.08.26 @ 20:54:55 Player: octapi Result: Destroyed by D-53 Grenadier with Mini Grenade Launcher Performance ------------- Evolutions (0) 0 Regions Visited (2) 400 Robots Destroyed (34) 170 Value Destroyed (646) 646 Prototype IDs (2) 40 Alien Tech Used (0) 0 Bonus (0) 0 TOTAL SCORE: 1256 Bonus ------- None Cogmind --------- Core Integrity 0/250 Matter 223/300 Energy 35/100 System Corruption 2% Temperature Cool (0) Movement Rolling (120) Ox2 Location -10/Mines Parts ------- > --- POWER (1) -------- (None) > --- PROPULSION (2) --- Compact Wheel > --- UTILITY (2) ------ Large Storage Unit High-capacity Storage Unit > --- WEAPON (2) ------- (None) > --- INVENTORY (18) --- Light Ion Engine Improved Heat Sink Hardened Light Armor Plating Hardened Light Armor Plating Particle Gun Beam Cannon Light Assault Rifle Light Assault Rifle Peak State ------------ > --- POWER ------------ Ion Engine > --- PROPULSION ------- Light Treads Light Treads > --- UTILITY ---------- Large Storage Unit Hardened Light Armor Plating > --- WEAPON ----------- Assault Rifle EMP Blaster > --- INVENTORY -------- Ion Engine Aluminum Leg Aluminum Leg Compact Wheel Improved Heat Sink Hardened Light Armor Plating Particle Gun Beam Cannon Light Assault Rifle EMP Blaster [Rating: 10] Favorites ----------- Power Ion Engine Engine Ion Engine Propulsion Light Treads Treads Light Treads Leg Aluminum Leg Wheel Compact Wheel Utility Large Storage Unit Device Improved Heat Sink Storage Large Storage Unit Protection Hardened Light Armor Plating Weapon Light Assault Rifle Energy Gun Particle Gun Ballistic Gun Light Assault Rifle Launcher EMP Blaster Build | -11 -10 -10 ------- Run | Scr Mat Min Slots Evolved . | . . . Power . | . . . Propulsion . | . . . Utility . | . . . Weapon . | . . . Parts Attached 29 | 6 8 15 Power 2 | 1 . 1 Engine 2 | 1 . 1 Core . | . . . Reactor . | . . . Propulsion 5 | 2 . 3 Treads 2 | 2 . . Leg 2 | . . 2 Wheel 1 | . . 1 Hover . | . . . Flight . | . . . Utility 6 | 1 5 . Device 1 | . 1 . Storage 4 | 1 3 . Processor . | . . . Hackware . | . . . Protection 1 | . 1 . Artifact . | . . . Weapon 16 | 2 3 11 Energy Gun 1 | . 1 . Energy Cannon . | . . . Ballistic Gun 8 | 2 1 5 Ballistic Cannon . | . . . Launcher 7 | . 1 6 Special Weapon . | . . . Impact Weapon . | . . . Slashing Weapon . | . . . Piercing Weapon . | . . . Special Melee Weapon . | . . . Unidentified Prototypes . | . . . Parts Lost 11 | . 1 10 Power 2 | . . 2 Propulsion 4 | . . 4 Utility . | . . . Weapon 5 | . 1 4 Highest Loss Streak 8 | . 1 8 Average Slot Usage (%) 97 | . 97 96 Engine 13 | . 14 12 Treads 27 | . 28 24 Device 1 | . 1 . Storage 18 | . 15 28 Protection 6 | . 8 . Energy Gun 4 | . 3 8 Ballistic Gun 21 | . 24 13 Launcher 1 | . . 5 Naked Turns . | . . . Heaviest Build 60 | 12 57 60 Greatest Support 40 | 40 40 40 Greatest Overweight (x) 5 | . 1 5 Average Overweight (x) . | . . 1 Largest Inventory Capacity 18 | 6 18 18 Average Capacity 11 | 5 10 18 Most Carried 13 | 6 11 13 Average Carried 9 | 3 9 12 Final Capacity 18 | 6 18 18 Final Carried 11 | 6 11 8 Class Distribution -------------------- 100% | Mutant Dominant Class ---------------- Mutant | -10/Materials Mutant | -10/Mines Resources | -11 -10 -10 ----------- Run | Scr Mat Min Matter Collected 624 | 254 229 141 Remotely . | . . . Salvage Created 899 | . 514 385 Parts 51 | . 32 19 Haulers Intercepted . | . . . Recyclers Shooed . | . . . Parts Field Recycled . | . . . Retrieved Matter . | . . . Parts Self-Destructed . | . . . Prevented . | . . . Kills | -11 -10 -10 ------- Run | Scr Mat Min Combat Hostiles Destroyed 32 | . 11 21 Guns 16 | . 9 7 AOE 16 | . 2 14 Classes Destroyed 4 | . 2 2 Watcher 2 | . 2 . Swarmer 10 | . . 10 Grunt 13 | . 11 2 Assembled 9 | . . 9 Best Kill Streak 7 | . 7 6 Combat Bots Only 7 | . 7 6 Max Kills in Single Turn 4 | . 2 4 Gunslinging 1 | . . 1 Exploded 4 | . 2 4 Melee . | . . . Uniques/NPCs Destroyed . | . . . Combat | -11 -10 -10 -------- Run | Scr Mat Min Damage Taken 1532 | . 448 1084 Core 255 | . 46 209 Absorbed by Shields . | . . . Core Remaining (%) 100 | 100 . . Volleys Fired 81 | . 42 39 Largest 2 | . 2 2 Hottest 98 | . 40 98 Shots Fired 134 | . 79 55 Gun 112 | . 74 38 Cannon . | . . . Launcher 22 | . 5 17 Special . | . . . Kinetic 104 | . 74 30 Thermal 8 | . . 8 Explosive . | . . . Electromagnetic 22 | . 5 17 Robot Hit Streak 17 | . 17 6 Robot Miss Streak 5 | . 5 3 Penetration Max . | . . . Secondary Targets 2 | . 1 1 Max Gunslinging Chain 1 | . 1 1 Shots Hit Robots 89 | . 58 31 Core Hits 62 | . 25 37 Critical Hits 2 | . 2 . Critical Kills 1 | . 1 . Critical Parts Destroyed 1 | . 1 . Melee Attacks . | . . . Impact . | . . . Slashing . | . . . Piercing . | . . . Sneak Attacks . | . . . Combat Hostiles . | . . . Follow-up Attacks . | . . . Damage Inflicted 1822 | . 764 1058 Guns 827 | . 563 264 Cannons . | . . . Explosions 995 | . 201 794 Melee . | . . . Ramming . | . . . Kinetic 751 | . 563 188 Thermal 171 | . . 171 Explosive . | . . . Electromagnetic 900 | . 201 699 Impact . | . . . Slashing . | . . . Piercing . | . . . Highest Corruption 2 | . . 2 Average Corruption 2 | . . 2 Corruption Purged . | . . . Overload Shots . | . . . Overflow Damage . | . . . Projectiles . | . . . Explosions . | . . . Melee . | . . . Knockbacks . | . . . Impact . | . . . Kinetic . | . . . Secondary . | . . . Self-Inflicted Damage 23 | . 2 21 Shots 5 | . 1 4 Rammed . | . . . Targets Rammed . | . . . Kicked . | . . . Crushed . | . . . Highest Temperature 123 | . 65 123 Average Temperature 29 | . 24 38 Received Heat Transfer 294 | . 243 51 Siege Activations . | . . . Robots Corrupted . | . . . Combat Hostiles . | . . . Parts Fried 2 | . 2 . Impact Corruptions . | . . . Robots Melted . | . . . Combat Hostiles . | . . . Parts Melted . | . . . Heat Transferred 285 | . . 285 Parts Sabotaged . | . . . Parts Stolen . | . . . Parts Stripped . | . . . Power Chain Reactions 2 | . . 2 Missiles Intercepted . | . . . Alert | -11 -10 -10 ------- Run | Scr Mat Min Peak Influence 352 | . 224 352 Average Influence 130 | . 99 272 Maximum Alert Level 1 | . 1 1 Low Security (%) 74 | 100 88 19 Level 1 25 | . 11 80 Level 2 . | . . . Level 3 . | . . . Level 4 . | . . . Level 5 . | . . . High Security . | . . . Max Security . | . . . Squads Dispatched 1 | . 1 . Investigation 1 | . 1 . Extermination . | . . . Reinforcement . | . . . Assault . | . . . Garrison . | . . . Intercept . | . . . Construction Impeded . | . . . Haulers Reinforced . | . . . Stealth | -11 -10 -10 --------- Run | Scr Mat Min Distress Signals . | . . . Communications Jammed . | . . . Distress Signals . | . . . Times Spotted 56 | . 20 36 Peak Tracking Total 10 | . 5 10 Tactical Retreats 3 | . . 3 Traps | -11 -10 -10 ------- Run | Scr Mat Min Traps Triggered . | . . . Indirectly . | . . . Trap Hack Attempts . | . . . Triggered . | . . . Disarmed . | . . . Reprogrammed . | . . . Reused . | . . . Traps Extracted . | . . . Installed . | . . . Triggered . | . . . Machines | -11 -10 -10 ---------- Run | Scr Mat Min Machines Disabled 2 | . 1 1 Max in Single Turn 1 | . 1 1 Machines Sabotaged . | . . . Garrisons Compromised . | . . . Overloaded Fab Kills . | . . . Fab Network Shutdowns . | . . . Hacking | -11 -10 -10 --------- Run | Scr Mat Min Machines Accessed 7 | . 7 . Terminals 6 | . 6 . Fabricators . | . . . Repair Stations . | . . . Recycling Units 1 | . 1 . Scanalyzers . | . . . Garrison Access . | . . . Total Hacks 23 | . 23 . Successful 16 | . 16 . Failed 7 | . 7 . Catastrophic 2 | . 2 . Database Lockouts . | . . . Manual 19 | . 19 . Terminals 22 | . 22 . Fabricators . | . . . Repair Stations . | . . . Recycling Units 1 | . 1 . Scanalyzers . | . . . Garrison Access . | . . . Terminal Hacks 6 | . 6 . Prototype ID Bank 1 | . 1 . Branch Access Points 1 | . 1 . Terminal Index 1 | . 1 . Hauler Manifests 1 | . 1 . Zone Layout 2 | . 2 . Fabricator Hacks . | . . . Repair Station Hacks . | . . . Recycling Unit Hacks . | . . . Scanalyzer . | . . . Garrison Access Hacks . | . . . Unauthorized Hacks 10 | . 10 . Terminals 9 | . 9 . Track 5 | . 5 . Botnet 4 | . 4 . Fabricators . | . . . Repair Stations . | . . . Recycling Units 1 | . 1 . Tunnel 1 | . 1 . Scanalyzers . | . . . Garrison Access . | . . . Data Cores Recovered . | . . . Used . | . . . Hacking Detections 6 | . 6 . Full Trace Events . | . . . Feedback Events . | . . . Feedback Blocked . | . . . Robot Schematics Acquired . | . . . Robots Built . | . . . Matter . | . . . Time . | . . . Total Robot Build Rating . | . . . Part Schematics Acquired . | . . . Parts Built . | . . . Matter . | . . . Time . | . . . Total Part Build Rating . | . . . Parts Repaired . | . . . Time . | . . . Parts Recycled . | . . . Recycled Matter . | . . . Retrieved Matter . | . . . Retrieved Components . | . . . Parts Scanalyzed . | . . . Part Schematics Acquired . | . . . Parts Damaged . | . . . Bothacking | -11 -10 -10 ------------ Run | Scr Mat Min Used RIF Installer . | . . . Robots Hacked . | . . . Non-combat . | . . . Combat . | . . . Robot Hacks Applied . | . . . Relay Couplers Released . | . . . Robots Rewired . | . . . Allies Hacked . | . . . Hacks Repelled . | . . . Allies | -11 -10 -10 -------- Run | Scr Mat Min Total Allies . | . . . Largest Group . | . . . Highest-Rated Group . | . . . Highest-Rated Ally . | . . . Total Orders . | . . . Ally Attacks . | . . . Total Damage . | . . . Kills . | . . . Allies Corrupted . | . . . Allies Melted . | . . . Intel | -11 -10 -10 ------- Run | Scr Mat Min Robot Analysis Total . | . . . Derelict Logs Recovered . | . . . Drone Launches . | . . . Drone Recoveries . | . . . Exploration | -11 -10 -10 ------------- Run | Scr Mat Min Turns Passed 1608 | 88 1187 333 Spaces Moved 755 | 48 611 96 Core 2 | 2 . . Treads 745 | 46 611 88 Legs 7 | . . 7 Wheels 1 | . . 1 Hover . | . . . Flight . | . . . Fastest Speed 50 | 50 160 120 Average Speed 164 | 155 162 183 Slowest Speed 270 | 160 180 270 Overloaded Moves . | . . . Propulsion Burnouts . | . . . Robots Hopped . | . . . Cave-ins Triggered . | . . . Exploration Rate (%) 41 | 4 92 29 Regions Visited 2 Branch Regions 1 Pre-discovered Areas 1 | . 1 . Known Exits Taken 1 | . 1 . Unknown Exits Taken 1 | 1 . . Scrap Searched . | . . . Spaces Dug . | . . . Terrain Destroyed 9 | . . 9 Melee . | . . . Projectile . | . . . AOE 9 | . . 9 Actions | -11 -10 -10 --------- Run | Scr Mat Min Total 992 | 59 732 201 Wait 107 | . 60 47 Move 753 | 47 610 96 Hop . | . . . Pick Up 15 | 6 6 3 Fast Attach 9 | 6 3 . Attach 8 | . 1 7 Detach 3 | . 2 1 Swap 12 | . 4 8 Drop 4 | . 4 . Fire 81 | . 42 39 Melee . | . . . Ram . | . . . Kick . | . . . Crush . | . . . Escape Stasis . | . . . Rewire . | . . . Trap . | . . . Miscellaneous . | . . . Route ------- -11/Scrapyard -10/Materials (discovered 5 exits: [*Mat x3] / *Min x2) -10/Mines History --------- Turn | Location | Event 35 | -11/Scrapyard | Discovered new exit (range 15) 89 | -11/Scrapyard | Entered Materials 314 | -10/Materials | Identified exit to Mines 332 | -10/Materials | Build established: Mutant 333 | -10/Materials | Discovered new exit (range 6) 770 | -10/Materials | Destroyed 7 combat bots 874 | -10/Materials | Discovered new exit (range 9) 1068 | -10/Materials | Discovered new exit (range 10) 1276 | -10/Materials | Entered Mines 1555 | -10/Mines | Assembled infested the area 1560 | -10/Mines | Assisted by a Guerilla fighting off Assembled 1587 | -10/Mines | Core integrity fell below 50% 1608 | -10/Mines | Core integrity fell below 20% 1609 | -10/Mines | Destroyed by D-53 Grenadier with Mini Grenade Launcher Last Messages --------------- 01582_ HV Slug penetrates Wall. 01582_ Core Extractor disabled. 01583_ OV-QWV(h) destroyed. 01588_ EMP Blaster destroyed. 01589_ Lgt. Assault Rifle destroyed. 01589_ System corrupted by crushing effect (+2). 01589_ Knocked back. 01590_ Acquired 11 matter. 01594_ Aluminum Leg destroyed. 01597_ Chain reaction triggered in Lgt. Ion Engine. 01597_ as-46587 destroyed. 01597_ as-32139 destroyed. 01597_ as-71840 destroyed. 01598_ as-14690 destroyed. 01600_ as-36361 destroyed. 01600_ as-06099 destroyed. 01605_ as-83052 destroyed. 01606_ The unstable cave ceiling collapses. 01608_ EMP Blaster destroyed. 01608_ Aluminum Leg destroyed. Map ----- +----------------------------------------------------+ | ?????????????????????????????????????????????????? | | ?????????????????????????????????????????????????? | | ?????????????????????????????????????????????????? | | ?????????????????????????????????????????????????? | | ????????????????????????????###??????????????????? | | ???????????????????????????? #??????????????????? | | ???????????????????????????? #??????????????????? | | ???????????????????????????# #??????????????????? | | ??????????????????????????? %%#??????????????????? | | ???????????????????????????#%%#??????????????????? | | ???????????????????????????#%%#??????????????????? | | ????????????????????????###;%%###????????????????? | | ???????????????????????## #????????????????? | | ????????????????#??????# ##???####????????? | | ????????????????? ?????# ????# ?????????? | | ?????????????????# #### ###???# #?????????? | | ?????????????????# # # # ##### ###???????? | | ?????????????????# =% #???????? | | ?????????????# ### d #???????? | | ?????????????# ######## #???????? | | ?????????????# $ d##??????# #???????? | | ?????????????## # #???????# #???????? | | ?????????????????# #???????# #???????? | | ?????????????????# #????????# #???????? | | ?????????????????## " ##???????# #???????? | | ??????????????????# @ #???????# #???????? | | ??????????????????# #???????# #???????? | | ??????????????# #???????# ##??????? | | ??????????????# ### #### ##??????## #??????? | | ??????????????????# ???### ##??????## ##??????? | | ?????????????????????????####??????## #???????? | | ??????????????????????????????????## ##???????? | | ?????????????????????????????????## ##????????? | | ?????????????????????????????????# ########??? | | ??????????????????????########???# #? | | ??????????????????????# #???###= ###### ##??? | | ??????????????????????#" #####?#%##??????????? | | ??????????????????????#" #?# #???????????? | | ??????????????????????#" ### #?# #???????????? | | ??????????????????????# = #?# ### #???????????? | | ??????????????????????##### #### #???????????? | | ????????????????????????# # # ## #####???????????? | | ????????????????????????### #### #???????????????? | | ?????????????????????????## "#?# #???????????????? | | ??????????????????????????# #### #???????????????? | | ??????????????????????????# ## ???????????????? | | ??????????????????????????# ## ###???????????????? | | ??????????????????????????# #?????????????????? | | ???????????? ??????????#### #?????????????????? | | ?????????????# #######?###%##????????????????? | +----------------------------------------------------+ Best States ------------- Heat Dissipation 25 Energy Generation 10 Energy Capacity 250 Matter Stores 300 Matter Capacity 300 Sight Range 16 Terrain Scan Density 10 Armor Coverage 150 Evasion (%) 40 Recoil Reduction 2 Item Schematics ----------------- None Robot Schematics ------------------ None Fabricated ------------ Nothing Alien Tech Used ----------------- None Achievements -------------- None Challenges ------------ None Game ------ Seed SmallUltimateDrive Manual? 0 Play Time 00:21:02 Cumulative 184.3 hours Start 2020.08.26 @ 20:32:32 End 2020.08.26 @ 20:54:55 Sessions 1 Manual Loads 0 Difficulty Rogue Special Mode None Game No. 107 Rogue 107 Adventurer 0 Explorer 0 Win Type - Total 8 Types 7/0/1/0/0/0/0 Lore% 63 Gallery% 73 Achievement% 56 Wizard Run 0 Options --------- ASCII 0 Keyboard 0 Movement Mouse Keybinds 0 Fullscreen 1 Font 18/SmallcapsGlow Map View 76x50 Tactical HUD 1 Map Filters NONE Filters NONE Steam 1 RUN: 777d74bb-cacd-4114-a0a3-b80330507c17